fUSD/lending_fUSD_20250109
["ID","MTS","AMOUNT","RATE_DAILY","PERIOD"]
[348334384,1736449842881,-500.0,9.863e-05,2]
[348334385,1736449842891,-500.0,9.863e-05,2]
[348334386,1736449842900,-500.0,9.863e-05,2]
[348334387,1736449842909,-500.0,9.863e-05,2]
[348334388,1736449842919,-500.0,9.863e-05,2]
[348334389,1736449842928,-500.0,9.863e-05,2]
[348334390,1736449842937,-500.0,9.863e-05,2]
[348334391,1736449842946,-500.0,9.863e-05,2]
[348334392,1736449842956,-500.0,9.863e-05,2]
[348334393,1736449842966,-500.0,9.863e-05,2]
[348334395,1736449842976,-500.0,9.863e-05,2]
[348334397,1736449842985,-500.0,9.863e-05,2]
[348334398,1736449842994,-507.03786752,9.863e-05,2]
[348334399,1736449843004,-500.0,9.863e-05,2]
[348334400,1736449843013,-500.0,9.863e-05,2]
[348334401,1736449843023,-500.0,9.863e-05,2]
[348334402,1736449843033,-500.0,9.863e-05,2]
[348334403,1736449843042,-546.36232796,9.863e-05,2]
[348334404,1736449843053,-500.0,9.863e-05,2]
[348334405,1736449843063,-500.0,9.863e-05,2]
[348334406,1736449843073,-500.0,9.863e-05,2]
[348334407,1736449843083,-505.97515746,9.863e-05,2]
[348334408,1736449843095,-500.0,9.863e-05,2]
[348334409,1736449843104,-500.0,9.863e-05,2]
[348334410,1736449843114,-507.64647025,9.863e-05,2]
[348334411,1736449843124,-395.73691582,9.863e-05,2]
[348334412,1736449843137,-500.0,9.863e-05,2]
[348334413,1736449843146,-500.0,9.863e-05,2]
[348334414,1736449843156,-500.0,9.863e-05,2]
[348334415,1736449843165,-500.0,9.863e-05,2]
[348334416,1736449843174,-500.0,9.863e-05,2]
[348334417,1736449843184,-506.43093275,9.863e-05,2]
[348334418,1736449843193,-500.0,9.863e-05,2]
[348334419,1736449843203,-500.0,9.863e-05,2]
[348334420,1736449843212,-500.0,9.863e-05,2]
[348334421,1736449843224,-500.0,9.863e-05,2]
[348334422,1736449843233,-500.0,9.863e-05,2]
[348334423,1736449843242,-500.0,9.863e-05,2]
[348334424,1736449843252,-500.0,9.863e-05,2]
[348334425,1736449843261,-500.0,9.863e-05,2]
[348334426,1736449843271,-500.0,9.863e-05,2]
[348334427,1736449843280,-500.0,9.863e-05,2]
[348334428,1736449843289,-500.0,9.863e-05,2]
[348334429,1736449843299,-500.0,9.863e-05,2]
[348334430,1736449843308,-1620.94,9.864e-05,2]
[348334431,1736449843318,-1023.85,9.864e-05,2]
[348334432,1736449843327,-1328.32,9.864e-05,2]
[348334433,1736449843336,-1399.04,9.864e-05,2]
[348334434,1736449843346,-1716.77,9.864e-05,2]
[348334435,1736449843355,-1931.21,9.864e-05,2]
[348334436,1736449843364,-6811.26,9.864e-05,2]
[348334437,1736449843374,-970.87,9.864e-05,2]
[348334438,1736449843383,-734.67,9.864e-05,2]
[348334439,1736449843392,-930.41,9.864e-05,2]
[348334440,1736449843403,-2241.18,9.864e-05,2]
[348334441,1736449843412,-500.0,9.864e-05,2]
[348334442,1736449843421,-780.72,9.864e-05,2]
[348334443,1736449843431,-1138.33,9.864e-05,2]
[348334444,1736449843440,-509.27,9.864e-05,2]
[348334445,1736449843449,-1535.79,9.864e-05,2]
[348334446,1736449843459,-500.0,9.864e-05,2]
[348334447,1736449843470,-500.0,9.864e-05,2]
[348334448,1736449843480,-1000.0,9.864e-05,2]
[348334449,1736449843489,-948.77,9.864e-05,2]
[348334450,1736449843499,-500.0,9.864e-05,2]
[348334451,1736449843508,-2010.06,9.864e-05,2]
[348334452,1736449843517,-1499.83,9.864e-05,2]
[348334453,1736449843734,-4720.5078,9.865e-05,2]
[348334454,1736449843744,-4326.3633,9.865e-05,2]
[348334455,1736449843754,-234.15,9.87e-05,2]
[348334456,1736449843763,-90702.1125,9.899e-05,2]
[348334457,1736449843773,-1000.0,9.9e-05,2]
[348334458,1736449843783,-3302.88745142,9.928e-05,2]
[348334459,1736449843795,-229.13774583,9.941e-05,2]
[348334460,1736449843804,-1000.0,9.942e-05,2]
[348334461,1736449843815,-242.0,9.959e-05,2]
[348334462,1736449843824,-927.6,9.964e-05,2]
[348334463,1736449843836,-1313.82,9.964e-05,2]
[348334464,1736449843846,-500.0,9.964e-05,2]
[348334465,1736449843858,-1417.77,9.964e-05,2]
[348334466,1736449843871,-1311.61,9.964e-05,2]
[348334467,1736449843882,-1597.76,9.964e-05,2]
[348334468,1736449843894,-3292.01,9.964e-05,2]
[348334469,1736449843903,-1438.56,9.964e-05,2]
[348334470,1736449843913,-1768.38,9.964e-05,2]
[348334471,1736449843924,-1096.32,9.964e-05,2]
[348334472,1736449843934,-1621.5,9.964e-05,2]
[348334473,1736449843944,-500.0,9.964e-05,2]
[348334474,1736449843954,-793.02,9.964e-05,2]
[348334475,1736449843966,-1565.92,9.964e-05,2]
[348334476,1736449843975,-782.23,9.964e-05,2]
[348334477,1736449843984,-552.68,9.964e-05,2]
[348334478,1736449843994,-670.28,9.964e-05,2]
[348334479,1736449844004,-500.0,9.964e-05,2]
[348334480,1736449844015,-500.30489895,9.973e-05,2]
[348334481,1736449844026,-501.13577004,9.973e-05,2]
[348334482,1736449844036,-241.6803545,9.973e-05,2]
[348334483,1736449844046,-152.0689055,9.973e-05,2]
[348334484,1736449844056,-151.82733164,9.973e-05,2]
[348334485,1736449844066,-198.1551735,9.973e-05,2]
[348334486,1736449844076,-500.0,9.973e-05,2]
[348334487,1736449844086,-500.0,9.973e-05,2]
[348334488,1736449844096,-500.0,9.973e-05,2]
[348334489,1736449844105,-963.69,9.998e-05,2]
[348334490,1736449844114,-500.0,9.999e-05,2]
[348334491,1736449844123,-500.0,9.999e-05,2]
[348334492,1736449844132,-485.72378912,9.999e-05,2]
[348334493,1736449844143,-500.0,9.999e-05,2]
[348334494,1736449844154,-500.0,9.999e-05,2]
[348334495,1736449844164,-500.0,9.999e-05,2]
[348334496,1736449844174,-500.0,9.999e-05,2]
[348334497,1736449844185,-500.0,9.999e-05,2]
[348334498,1736449844195,-500.0,9.999e-05,2]
[348334499,1736449844205,-548.96,9.999e-05,2]
[348334500,1736449844216,-500.0,9.999e-05,2]
[348334501,1736449844225,-500.0,9.999e-05,2]
[348334502,1736449844234,-500.0,9.999e-05,2]
[348334503,1736449844244,-500.0,9.999e-05,2]
[348334504,1736449844253,-500.0,9.999e-05,2]
[348334505,1736449844263,-500.0,9.999e-05,2]
[348334506,1736449844273,-500.0,9.999e-05,2]
[348334507,1736449844283,-500.0,9.999e-05,2]
[348334508,1736449844294,-500.0,9.999e-05,2]
[348334509,1736449844305,-500.0,9.999e-05,2]
[348334510,1736449844314,-500.0,9.999e-05,2]
[348334511,1736449844325,-500.0,9.999e-05,2]
[348334512,1736449844334,-500.0,9.999e-05,2]
[348334513,1736449844344,-500.0,9.999e-05,2]
[348334514,1736449844355,-500.0,9.999e-05,2]
[348334515,1736449844365,-500.0,9.999e-05,2]
[348334516,1736449844375,-500.0,9.999e-05,2]
[348334517,1736449844384,-500.0,9.999e-05,2]
[348334518,1736449844394,-500.0,9.999e-05,2]
[348334519,1736449844404,-500.0,9.999e-05,2]
[348334520,1736449844415,-500.0,9.999e-05,2]
[348334521,1736449844425,-500.0,9.999e-05,2]
[348334522,1736449844436,-500.0,9.999e-05,2]
[348334523,1736449844446,-500.0,9.999e-05,2]
[348334524,1736449844456,-500.0,9.999e-05,2]
[348334525,1736449844469,-500.0,9.999e-05,2]
[348334526,1736449844480,-500.0,9.999e-05,2]
[348334527,1736449844490,-500.0,9.999e-05,2]
[348334528,1736449844500,-500.0,9.999e-05,2]
[348334529,1736449844509,-500.0,9.999e-05,2]
[348334530,1736449844519,-500.0,9.999e-05,2]
[348334531,1736449844529,-503.74,9.999e-05,2]
[348334532,1736449844539,-500.0,9.999e-05,2]
[348334533,1736449844549,-500.0,9.999e-05,2]
[348334534,1736449844560,-500.0,9.999e-05,2]
[348334535,1736449844570,-500.0,9.999e-05,2]
[348334536,1736449844580,-500.0,9.999e-05,2]
[348334537,1736449844589,-500.0,9.999e-05,2]
[348334538,1736449844600,-512.08,9.999e-05,2]
[348334539,1736449844609,-500.0,9.999e-05,2]
[348334540,1736449844618,-500.0,9.999e-05,2]
[348334541,1736449844628,-500.0,9.999e-05,2]
[348334542,1736449844638,-500.0,9.999e-05,2]
[348334543,1736449844648,-500.0,9.999e-05,2]
[348334544,1736449844658,-521.75781591,9.999e-05,2]
[348334545,1736449844669,-500.0,9.999e-05,2]
[348334546,1736449844679,-500.0,9.999e-05,2]
[348334547,1736449844689,-500.0,9.999e-05,2]
[348334548,1736449844699,-500.0,9.999e-05,2]
[348334549,1736449844709,-500.0,9.999e-05,2]
[348334550,1736449844719,-500.0,9.999e-05,2]
[348334551,1736449844728,-500.0,9.999e-05,2]
[348334552,1736449844739,-500.0,9.999e-05,2]
[348334553,1736449844749,-500.0,9.999e-05,2]
[348334554,1736449844759,-500.0,9.999e-05,2]
[348334555,1736449844769,-500.0,9.999e-05,2]
[348334556,1736449844778,-500.0,9.999e-05,2]
[348334557,1736449844790,-512.43,9.999e-05,2]
[348334558,1736449844802,-500.0,9.999e-05,2]
[348334559,1736449844812,-500.0,9.999e-05,2]
[348334560,1736449844822,-500.0,9.999e-05,2]
[348334561,1736449844833,-500.0,9.999e-05,2]
[348334562,1736449844843,-500.0,9.999e-05,2]
[348334563,1736449844856,-500.0,9.999e-05,2]
[348334564,1736449844869,-500.0,9.999e-05,2]
[348334565,1736449844879,-500.0,9.999e-05,2]
[348334566,1736449844888,-500.0,9.999e-05,2]
[348334567,1736449844898,-500.0,9.999e-05,2]
[348334568,1736449844907,-500.0,9.999e-05,2]
[348334569,1736449844917,-500.0,9.999e-05,2]
[348334570,1736449844926,-500.0,9.999e-05,2]
[348334571,1736449844935,-500.0,9.999e-05,2]
[348334572,1736449844945,-500.0,9.999e-05,2]
[348334573,1736449844954,-500.0,9.999e-05,2]
[348334574,1736449844964,-500.0,9.999e-05,2]
[348334575,1736449844974,-500.0,9.999e-05,2]
[348334576,1736449844984,-500.0,9.999e-05,2]
[348334577,1736449844993,-500.0,9.999e-05,2]
[348334578,1736449845003,-500.0,9.999e-05,2]
[348334579,1736449845012,-500.0,9.999e-05,2]
[348334580,1736449845022,-500.0,9.999e-05,2]
[348334581,1736449845031,-500.0,9.999e-05,2]
[348334582,1736449845040,-500.0,9.999e-05,2]
[348334583,1736449845050,-500.0,9.999e-05,2]
[348334584,1736449845059,-500.0,9.999e-05,2]
[348334585,1736449845069,-500.0,9.999e-05,2]
[348334586,1736449845080,-500.0,9.999e-05,2]
[348334587,1736449845092,-500.0,9.999e-05,2]
[348334588,1736449845103,-500.0,9.999e-05,2]
[348334589,1736449845113,-500.0,9.999e-05,2]
[348334590,1736449845123,-500.0,9.999e-05,2]
[348334591,1736449845134,-500.0,9.999e-05,2]
[348334592,1736449845144,-500.0,9.999e-05,2]
[348334593,1736449845153,-500.0,9.999e-05,2]
[348334594,1736449845163,-500.0,9.999e-05,2]
[348334595,1736449845172,-500.0,9.999e-05,2]
[348334596,1736449845181,-500.0,9.999e-05,2]
[348334597,1736449845191,-500.0,9.999e-05,2]
[348334598,1736449845200,-500.0,9.999e-05,2]
[348334599,1736449845211,-500.0,9.999e-05,2]
[348334600,1736449845222,-500.0,9.999e-05,2]
[348334601,1736449845233,-500.0,9.999e-05,2]
[348334602,1736449845244,-500.0,9.999e-05,2]
[348334603,1736449845254,-500.0,9.999e-05,2]
[348334604,1736449845265,-500.0,9.999e-05,2]
[348334605,1736449845276,-500.0,9.999e-05,2]
[348334606,1736449845286,-500.0,9.999e-05,2]
[348334607,1736449845296,-500.0,9.999e-05,2]
[348334608,1736449845306,-500.0,9.999e-05,2]
[348334609,1736449845315,-500.0,9.999e-05,2]
[348334610,1736449845325,-336.78193485,9.999e-05,2]
[348334611,1736449845334,-500.0,9.999e-05,2]
[348334612,1736449845344,-500.0,9.999e-05,2]
[348334613,1736449845353,-500.0,9.999e-05,2]
[348334614,1736449845364,-500.0,9.999e-05,2]
[348334615,1736449845375,-500.0,9.999e-05,2]
[348334616,1736449845384,-500.0,9.999e-05,2]
[348334617,1736449845394,-500.0,9.999e-05,2]
[348334618,1736449845405,-500.0,9.999e-05,2]
[348334620,1736449845416,-1138.23,9.999e-05,2]
[348334621,1736449845427,-500.0,9.999e-05,2]
[348334622,1736449845436,-500.0,9.999e-05,2]
[348334623,1736449845446,-173.06708308,9.999e-05,2]
[348334624,1736449845455,-500.0,9.999e-05,2]
[348334625,1736449845465,-500.30582414,9.999e-05,2]
[348334626,1736449845474,-500.0,9.999e-05,2]
[348334627,1736449845484,-708.32,9.999e-05,2]
[348334628,1736449845493,-500.0,9.999e-05,2]
[348334629,1736449845503,-500.0,9.999e-05,2]
[348334630,1736449845515,-500.0,9.999e-05,2]
[348334631,1736449845524,-500.0,9.999e-05,2]
[348334632,1736449845533,-500.0,9.999e-05,2]
[348334633,1736449845543,-683.29,9.999e-05,2]
[348334634,1736449845552,-500.0,9.999e-05,2]
[348334635,1736449845562,-500.0,9.999e-05,2]
[348334636,1736449845571,-500.0,9.999e-05,2]
[348334637,1736449845581,-500.0,9.999e-05,2]
[348334638,1736449845591,-500.0,9.999e-05,2]
[348334639,1736449845600,-500.0,9.999e-05,2]
[348334640,1736449845610,-500.0,9.999e-05,2]
[348334641,1736449845619,-500.0,9.999e-05,2]
[348334642,1736449845629,-500.0,9.999e-05,2]
[348334643,1736449845638,-500.0,9.999e-05,2]
[348334644,1736449845648,-500.0,9.999e-05,2]
[348334645,1736449845657,-1103.99,9.999e-05,2]
[348334646,1736449845667,-1220.13,9.999e-05,2]
[348334647,1736449845677,-1483.36,9.999e-05,2]
[348334648,1736449845687,-954.14,9.999e-05,2]
[348334649,1736449845697,-2384.0,9.999e-05,2]
[348334650,1736449845707,-1547.23,9.999e-05,2]
[348334651,1736449845717,-1194.17,9.999e-05,2]
[348334652,1736449845726,-5002.88,9.999e-05,2]
[348334653,1736449845736,-646.81,9.999e-05,2]
[348334654,1736449845746,-9323263.79212737,0.0001,5]
[348334696,1736449846242,-745.46013765,0.0001,5]
[348334700,1736449846270,-1000.0,0.0001,5]
[348334770,1736449846922,-548.51943724,9.445e-05,2]
[348334774,1736449846952,-808.21582427,9.445e-05,2]
[348334776,1736449846961,-500.0,9.86e-05,2]
[348334778,1736449846972,-500.0,9.862e-05,2]
[348334780,1736449846981,-776938.06650397,0.0001,5]
[348335236,1736450209207,694.44,8.219e-05,2]
[348335237,1736450711106,150.0,8.347e-05,2]
[348335238,1736450711303,150.0,8.176e-05,2]
[348335239,1736450711384,150.0,8.497e-05,2]
[348335240,1736450711511,150.0,8.421e-05,2]
[348335241,1736450713547,270.06988054,8.379e-05,2]
[348335242,1736450722620,2944.11,8.479e-05,2]
[348335258,1736450933116,250.0,8.474e-05,2]
[348335259,1736450975692,1500.0,7.854e-05,2]
[348335260,1736450983411,233.58,8.47e-05,2]
[348335267,1736451031981,-150.0,8.582e-05,2]
[348335268,1736451031992,-150.0,8.648e-05,2]
[348335269,1736451032002,-250.0,8.666e-05,2]
[348335270,1736451032011,-150.0,8.811e-05,2]
[348335271,1736451032022,-150.0,8.866e-05,2]
[348335272,1736451032032,-1000.0,8.871e-05,2]
[348335273,1736451032041,-150.0,8.903e-05,2]
[348335274,1736451032051,-363.52,8.973e-05,2]
[348335275,1736451032061,-4973.44907941,8.998e-05,2]
[348335276,1736451032073,-361.67562588,8.998e-05,2]
[348335277,1736451032085,-383.46181013,8.998e-05,2]
[348335278,1736451032097,-11095.91348458,8.998e-05,2]
[348335279,1736451032107,-150.0,9.028e-05,2]
[348335280,1736451032117,-150.0,9.099e-05,2]
[348335281,1736451032127,-150.0,9.099e-05,2]
[348335282,1736451032137,-150.0,9.099e-05,2]
[348335283,1736451032146,-150.09785196,9.099e-05,2]
[348335284,1736451032156,-177.28682157,9.099e-05,2]
[348335285,1736451032166,-150.0,9.162e-05,2]
[348335286,1736451032175,-150.0,9.166e-05,2]
[348335287,1736451032184,-150.0,9.2e-05,2]
[348335288,1736451032197,-150.0,9.211e-05,2]
[348335289,1736451032206,-150.0,9.233e-05,2]
[348335290,1736451032215,-150.0,9.267e-05,2]
[348335291,1736451032225,-8113.0,9.283e-05,2]
[348335292,1736451032235,-150.0,9.301e-05,2]
[348335293,1736451032244,-150.0,9.323e-05,2]
[348335294,1736451032254,-1500.0,9.333e-05,2]
[348335295,1736451032263,-150.0,9.368e-05,2]
[348335296,1736451032273,-150.0,9.401e-05,2]
[348335297,1736451032282,-150.0,9.403e-05,2]
[348335298,1736451032292,-150.0,9.403e-05,2]
[348335299,1736451032301,-150.0,9.436e-05,2]
[348335300,1736451032311,-150.0,9.436e-05,2]
[348335301,1736451032322,-150.0,9.436e-05,2]
[348335302,1736451032331,-150.0,9.466e-05,2]
[348335303,1736451032340,-150.0,9.503e-05,2]
[348335304,1736451032349,-150.0,9.508e-05,2]
[348335305,1736451032358,-150.0,9.543e-05,2]
[348335306,1736451032367,-150.0,9.548e-05,2]
[348335307,1736451032376,-150.0,9.57e-05,2]
[348335308,1736451032385,-128.37794743,9.585e-05,2]
[348335310,1736451032423,-21.62205257,9.585e-05,2]
[348335312,1736451032432,-150.0,9.589e-05,2]
[348335314,1736451032444,-150.0,9.604e-05,2]
[348335316,1736451032453,-150.0,9.609e-05,2]
[348335318,1736451032462,-150.0,9.638e-05,2]
[348335320,1736451032471,-69.13465875,9.66e-05,2]
[348335322,1736451032484,-80.86534125,9.66e-05,2]
[348335324,1736451032493,-406.5707,9.662e-05,2]
[348335326,1736451032502,-369.36395875,9.662e-05,2]
[348335328,1736451032513,-630.63604125,9.662e-05,2]
[348335330,1736451032522,-715.52908115,9.662e-05,2]
[348335332,1736451032533,-569.56961885,9.662e-05,2]
[348335334,1736451032542,-601.35089815,9.662e-05,2]
[348335345,1736451032637,-231.80740185,9.662e-05,2]
[348335347,1736451032647,-2810.04481005,9.662e-05,2]
[348335348,1736451032897,-3074.00678995,9.662e-05,2]
[348335349,1736451032907,-543.8171,9.662e-05,2]
[348335350,1736451032917,-866.5748,9.662e-05,2]
[348335351,1736451032927,-1000.0,9.662e-05,2]
[348335352,1736451032936,-1412.10405535,9.662e-05,2]
[348335353,1736451032948,-507.7052,9.663e-05,2]
[348335354,1736451032957,-150.0,9.674e-05,2]
[348335355,1736451032967,-150.0,9.705e-05,2]
[348335356,1736451032977,-150.0,9.719e-05,2]
[348335357,1736451032987,-1412.10405531,9.73e-05,2]
[348335358,1736451032997,-4609.0722,9.758e-05,2]
[348335359,1736451033008,-37384.5341,9.76e-05,2]
[348335360,1736451033018,-6563.2761,9.76e-05,2]
[348335361,1736451033028,-99574.957,9.762e-05,2]
[348335362,1736451033037,-8169.99859932,9.762e-05,2]
[348335363,1736451033050,-8809.25150068,9.762e-05,2]
[348335364,1736451033060,-150.0,9.773e-05,2]
[348335365,1736451033070,-150.0,9.773e-05,2]
[348335366,1736451033079,-150.0,9.773e-05,2]
[348335367,1736451033089,-423.00849932,9.797e-05,2]
[348335369,1736451037806,-989.09555599,9.797e-05,2]
[348335370,1736451037816,-150.0,9.829e-05,2]
[348335371,1736451037825,-150.0,9.84e-05,2]
[348335372,1736451037834,-150.0,9.847e-05,2]
[348335373,1736451037844,-500.0,9.856e-05,2]
[348335374,1736451037854,-500.0,9.856e-05,2]
[348335375,1736451037863,-500.0,9.856e-05,2]
[348335376,1736451037873,-873.8,9.856e-05,2]
[348335377,1736451037883,-500.0,9.856e-05,2]
[348335378,1736451037893,-500.0,9.856e-05,2]
[348335379,1736451037903,-500.0,9.856e-05,2]
[348335380,1736451037913,-500.0,9.856e-05,2]
[348335381,1736451037923,-790.4,9.857e-05,2]
[348335382,1736451037933,-3157.4,9.857e-05,2]
[348335383,1736451037945,-1155.49,9.857e-05,2]
[348335384,1736451037955,-1130.82,9.857e-05,2]
[348335385,1736451037964,-2173.35,9.857e-05,2]
[348335386,1736451037975,-6362.54,9.857e-05,2]
[348335387,1736451037985,-500.0,9.857e-05,2]
[348335388,1736451037995,-597.38874727,9.857e-05,2]
[348335389,1736451038005,-902.93,9.857e-05,2]
[348335390,1736451038015,-883.23,9.857e-05,2]
[348335391,1736451038024,-2704.69,9.857e-05,2]
[348335392,1736451038034,-3670.17,9.857e-05,2]
[348335393,1736451038044,-1369.72,9.857e-05,2]
[348335394,1736451038053,-1911.24,9.857e-05,2]
[348335395,1736451038062,-606.99,9.857e-05,2]
[348335397,1736451038072,-644.99,9.857e-05,2]
[348335399,1736451038081,-1127.66,9.857e-05,2]
[348335401,1736451038091,-500.0,9.857e-05,2]
[348335402,1736451038101,-2023.38,9.857e-05,2]
[348335404,1736451038110,-1317.56,9.857e-05,2]
[348335406,1736451038119,-2967.03,9.857e-05,2]
[348335408,1736451038129,-500.0,9.857e-05,2]
[348335410,1736451038139,-1698.32,9.857e-05,2]
[348335412,1736451038148,-1126.17,9.857e-05,2]
[348335414,1736451038157,-4328.49,9.857e-05,2]
[348335416,1736451038167,-500.0,9.857e-05,2]
[348335418,1736451038176,-3014.77,9.857e-05,2]
[348335420,1736451038186,-500.0,9.857e-05,2]
[348335422,1736451038198,-881.25,9.857e-05,2]
[348335424,1736451038207,-705.88,9.857e-05,2]
[348335426,1736451038216,-500.15,9.857e-05,2]
[348335428,1736451038226,-1708.38,9.857e-05,2]
[348335430,1736451038235,-2487.46,9.857e-05,2]
[348335432,1736451038245,-500.0,9.858e-05,2]
[348335434,1736451038255,-500.0,9.858e-05,2]
[348335436,1736451038264,-500.0,9.858e-05,2]
[348335438,1736451038273,-500.0,9.858e-05,2]
[348335440,1736451038282,-745.36,9.858e-05,2]
[348335442,1736451038292,-500.0,9.858e-05,2]
[348335443,1736451038301,-748.23,9.858e-05,2]
[348335446,1736451038311,-804.81,9.858e-05,2]
[348335448,1736451038323,-500.0,9.858e-05,2]
[348335450,1736451038332,-500.0,9.858e-05,2]
[348335451,1736451038341,-892.79,9.858e-05,2]
[348335453,1736451038350,-500.0,9.858e-05,2]
[348335455,1736451038361,-636.12,9.858e-05,2]
[348335457,1736451038370,-685.89,9.858e-05,2]
[348335459,1736451038380,-500.0,9.858e-05,2]
[348335461,1736451038390,-500.0,9.858e-05,2]
[348335463,1736451038400,-500.0,9.858e-05,2]
[348335465,1736451038410,-500.0,9.858e-05,2]
[348335467,1736451038419,-500.0,9.858e-05,2]
[348335469,1736451038428,-500.0,9.858e-05,2]
[348335471,1736451038438,-821.25,9.858e-05,2]
[348335473,1736451038449,-500.0,9.858e-05,2]
[348335475,1736451038460,-500.0,9.858e-05,2]
[348335477,1736451038471,-500.0,9.858e-05,2]
[348335479,1736451038480,-500.0,9.858e-05,2]
[348335481,1736451038490,-699.35,9.858e-05,2]
[348335483,1736451038500,-500.0,9.858e-05,2]
[348335485,1736451038509,-500.0,9.858e-05,2]
[348335487,1736451038519,-500.0,9.858e-05,2]
[348335488,1736451038528,-500.0,9.858e-05,2]
[348335490,1736451038537,-787.77,9.858e-05,2]
[348335492,1736451038547,-543.99,9.858e-05,2]
[348335495,1736451038557,-768.39,9.858e-05,2]
[348335497,1736451038567,-500.0,9.858e-05,2]
[348335499,1736451038576,-500.0,9.858e-05,2]
[348335501,1736451038586,-500.0,9.858e-05,2]
[348335503,1736451038595,-1173.07,9.858e-05,2]
[348335504,1736451038604,-500.0,9.858e-05,2]
[348335507,1736451038614,-500.0,9.858e-05,2]
[348335508,1736451038623,-500.0,9.858e-05,2]
[348335510,1736451038632,-613.51,9.858e-05,2]
[348335513,1736451038643,-500.0,9.858e-05,2]
[348335515,1736451038652,-500.0,9.858e-05,2]
[348335517,1736451038661,-500.0,9.858e-05,2]
[348335519,1736451038671,-500.0,9.858e-05,2]
[348335520,1736451038680,-942.2,9.858e-05,2]
[348335522,1736451038689,-500.0,9.858e-05,2]
[348335525,1736451038703,-500.0,9.858e-05,2]
[348335526,1736451038712,-500.0,9.858e-05,2]
[348335529,1736451038722,-613.17,9.858e-05,2]
[348335531,1736451038731,-500.0,9.858e-05,2]
[348335532,1736451038741,-876.83,9.858e-05,2]
[348335534,1736451038750,-500.0,9.858e-05,2]
[348335536,1736451038760,-500.0,9.858e-05,2]
[348335538,1736451038770,-960.41,9.858e-05,2]
[348335540,1736451038780,-500.0,9.858e-05,2]
[348335542,1736451038789,-540.86,9.858e-05,2]
[348335544,1736451038801,-500.0,9.858e-05,2]
[348335546,1736451038813,-767.49,9.858e-05,2]
[348335548,1736451038823,-500.0,9.858e-05,2]
[348335550,1736451038832,-500.0,9.858e-05,2]
[348335552,1736451038841,-813.99,9.858e-05,2]
[348335553,1736451038851,-500.0,9.858e-05,2]
[348335554,1736451038861,-500.0,9.858e-05,2]
[348335555,1736451038871,-954.6,9.858e-05,2]
[348335556,1736451038880,-500.0,9.858e-05,2]
[348335557,1736451038890,-664.37,9.858e-05,2]
[348335558,1736451038899,-500.0,9.858e-05,2]
[348335559,1736451038909,-500.0,9.858e-05,2]
[348335560,1736451038918,-1201.12,9.858e-05,2]
[348335561,1736451038928,-500.0,9.858e-05,2]
[348335562,1736451038937,-690.84,9.858e-05,2]
[348335563,1736451038950,-828.41,9.858e-05,2]
[348335564,1736451038960,-952.05,9.858e-05,2]
[348335565,1736451038969,-500.0,9.858e-05,2]
[348335566,1736451038981,-565.46,9.858e-05,2]
[348335567,1736451038990,-514.58,9.858e-05,2]
[348335568,1736451038999,-768.09,9.858e-05,2]
[348335569,1736451039010,-500.0,9.858e-05,2]
[348335570,1736451039021,-701.59,9.858e-05,2]
[348335571,1736451039031,-500.0,9.858e-05,2]
[348335572,1736451039040,-1798.15,9.858e-05,2]
[348335573,1736451039050,-540.47,9.858e-05,2]
[348335574,1736451039060,-500.0,9.858e-05,2]
[348335575,1736451039071,-500.0,9.858e-05,2]
[348335576,1736451039081,-707.57,9.858e-05,2]
[348335577,1736451039090,-500.0,9.858e-05,2]
[348335578,1736451039099,-511.3,9.858e-05,2]
[348335579,1736451039109,-500.0,9.858e-05,2]
[348335580,1736451039118,-626.26,9.858e-05,2]
[348335581,1736451039128,-540.52,9.858e-05,2]
[348335582,1736451039137,-847.1,9.858e-05,2]
[348335583,1736451039146,-2630.0,9.858e-05,2]